[Event "*** Titled Tuesday Blitz"]
[Site "Chess.com"]
[Date "2021.03.09"]
[Round "6"]
[White "Chopper1905"]
[Black "Kobalia"]
[Result "0-1"]
[WhiteElo "2907"]
[BlackElo "2729"]
[TimeControl "180+1"]
[EndTime "11:09:35 PST"]
[Termination "Kobalia won by checkmate"]

1. d4 {[%clk 0:03:00.9]} 1... d5 {[%clk 0:02:55.3]} 2. c4 {[%clk 0:03:01.1]}
2... c6 {[%clk 0:02:55.4]} 3. cxd5 {[%clk 0:03:01.6]} 3... cxd5 {[%clk
0:02:54.5]} 4. Bf4 {[%clk 0:03:02.2]} 4... e6 {[%clk 0:02:54.4]} 5. Nc3 {[%clk
0:03:02]} 5... Bd6 {[%clk 0:02:54.4]} 6. Bxd6 {[%clk 0:02:59.1]} 6... Qxd6
{[%clk 0:02:54.4]} 7. e3 {[%clk 0:02:59.6]} 7... Ne7 {[%clk 0:02:54.3]} 8. Bd3
{[%clk 0:02:59.4]} 8... Nbc6 {[%clk 0:02:54]} 9. Nf3 {[%clk 0:02:50.9]} 9... O-O
{[%clk 0:02:53.1]} 10. O-O {[%clk 0:02:50.9]} 10... Bd7 {[%clk 0:02:52.6]} 11.
a3 {[%clk 0:02:50.1]} 11... Rfc8 {[%clk 0:02:51.6]} 12. Rc1 {[%clk 0:02:49.1]}
12... Be8 {[%clk 0:02:51]} 13. b4 {[%clk 0:02:43.7]} 13... f6 {[%clk 0:02:50.2]}
14. Re1 {[%clk 0:02:31.9]} 14... Bg6 {[%clk 0:02:41.5]} 15. Bxg6 {[%clk
0:02:28]} 15... hxg6 {[%clk 0:02:39.4]} 16. e4 {[%clk 0:02:26.5]} 16... Qd7
{[%clk 0:02:25.9]} 17. h3 {[%clk 0:02:15.1]} 17... dxe4 {[%clk 0:02:24.2]} 18.
Rxe4 {[%clk 0:02:07.4]} 18... Nd5 {[%clk 0:02:21.8]} 19. Qe1 {[%clk 0:02:00]}
19... Re8 {[%clk 0:02:19.4]} 20. Rc2 {[%clk 0:01:50.4]} 20... Kf7 {[%clk
0:02:12.9]} 21. Rce2 {[%clk 0:01:49]} 21... Nxc3 {[%clk 0:02:08.1]} 22. Qxc3
{[%clk 0:01:48.3]} 22... Ne7 {[%clk 0:02:05.3]} 23. Rg4 {[%clk 0:01:12.1]} 23...
Rac8 {[%clk 0:02:00.9]} 24. Qd3 {[%clk 0:01:09.7]} 24... Nf5 {[%clk 0:02:00.4]}
25. Nh4 {[%clk 0:00:50]} 25... Rc1+ {[%clk 0:01:48.8]} 26. Kh2 {[%clk
0:00:49.7]} 26... Qd6+ {[%clk 0:01:42.6]} 27. g3 {[%clk 0:00:49.2]} 27... Qd5
{[%clk 0:01:38.8]} 28. Ng2 {[%clk 0:00:31.8]} 28... g5 {[%clk 0:01:32.9]} 29.
Rge4 {[%clk 0:00:28.3]} 29... Rh8 {[%clk 0:01:23.8]} 30. Re1 {[%clk 0:00:24]}
30... Rxe1 {[%clk 0:01:18.2]} 31. Nxe1 {[%clk 0:00:24.9]} 31... Nd6 {[%clk
0:01:12.3]} 32. Re2 {[%clk 0:00:20.5]} 32... Rxh3+ {[%clk 0:01:07.9]} 33. Kxh3
{[%clk 0:00:21.1]} 33... Qh1+ {[%clk 0:01:07.7]} 34. Kg4 {[%clk 0:00:21.6]}
34... f5+ {[%clk 0:01:06.8]} 35. Kxg5 {[%clk 0:00:22.1]} 35... Qh6# {[%clk
0:01:06.5]} 0-1

[Event "*** Titled Tuesday Blitz"]
[Site "Chess.com"]
[Date "2021.03.09"]
[Round "6"]
[White "MuhittinBuker"]
[Black "pavelalexandru07"]
[Result "0-1"]
[WhiteElo "2152"]
[BlackElo "2312"]
[TimeControl "180+1"]
[EndTime "11:09:39 PST"]
[Termination "pavelalexandru07 won on time"]

1. d4 {[%clk 0:03:00.9]} 1... Nf6 {[%clk 0:02:56.8]} 2. c4 {[%clk 0:02:52.6]}
2... c5 {[%clk 0:02:48.3]} 3. d5 {[%clk 0:02:47.4]} 3... d6 {[%clk 0:02:47.5]}
4. Nc3 {[%clk 0:02:46.1]} 4... e6 {[%clk 0:02:47.6]} 5. e4 {[%clk 0:02:33.8]}
5... exd5 {[%clk 0:02:46.6]} 6. cxd5 {[%clk 0:02:32.9]} 6... g6 {[%clk
0:02:38.4]} 7. Be2 {[%clk 0:02:25.9]} 7... Bg7 {[%clk 0:02:37.7]} 8. Nf3 {[%clk
0:02:24.1]} 8... O-O {[%clk 0:02:37.3]} 9. O-O {[%clk 0:02:09.4]} 9... Re8
{[%clk 0:02:34.5]} 10. Nd2 {[%clk 0:02:03]} 10... Nbd7 {[%clk 0:02:26.8]} 11.
Re1 {[%clk 0:01:56.8]} 11... a6 {[%clk 0:02:24.4]} 12. a4 {[%clk 0:01:53.6]}
12... Rb8 {[%clk 0:02:24.3]} 13. Bf1 {[%clk 0:01:18.7]} 13... h5 {[%clk
0:02:05.5]} 14. h3 {[%clk 0:01:16.7]} 14... Qc7 {[%clk 0:01:38.6]} 15. f4 {[%clk
0:00:56]} 15... h4 {[%clk 0:01:33]} 16. Nc4 {[%clk 0:00:46.8]} 16... Nh5 {[%clk
0:01:24.9]} 17. Qf3 {[%clk 0:00:26.3]} 17... b5 {[%clk 0:01:11.9]} 18. axb5
{[%clk 0:00:20.1]} 18... axb5 {[%clk 0:01:10.5]} 19. Nxd6 {[%clk 0:00:19.3]}
19... Qxd6 {[%clk 0:01:05]} 20. Nxb5 {[%clk 0:00:19.4]} 20... Qb6 {[%clk
0:01:03.4]} 21. e5 {[%clk 0:00:17.4]} 21... c4+ {[%clk 0:01:03.2]} 22. Qf2
{[%clk 0:00:12.2]} 22... Qxb5 {[%clk 0:01:02.1]} 23. d6 {[%clk 0:00:06.3]} 23...
Ng3 {[%clk 0:00:56.4]} 0-1

[Event "*** Titled Tuesday Blitz"]
[Site "Chess.com"]
[Date "2021.03.09"]
[Round "6"]
[White "Homyakova_Elena"]
[Black "Synctel"]
[Result "1-0"]
[WhiteElo "2268"]
[BlackElo "2011"]
[TimeControl "180+1"]
[EndTime "11:09:42 PST"]
[Termination "Homyakova_Elena won by resignation"]

1. e4 {[%clk 0:03:00.9]} 1... e6 {[%clk 0:02:59.7]} 2. d4 {[%clk 0:03:00.2]}
2... d5 {[%clk 0:02:59.6]} 3. Nd2 {[%clk 0:03:00.3]} 3... dxe4 {[%clk
0:02:52.9]} 4. Nxe4 {[%clk 0:03:01.2]} 4... Bd7 {[%clk 0:02:53.2]} 5. Nf3 {[%clk
0:02:59.7]} 5... Bc6 {[%clk 0:02:53.6]} 6. Bd3 {[%clk 0:02:59.3]} 6... Nd7
{[%clk 0:02:53.5]} 7. O-O {[%clk 0:02:57.9]} 7... Ngf6 {[%clk 0:02:54]} 8. Qe2
{[%clk 0:02:56.9]} 8... Be7 {[%clk 0:02:45.1]} 9. Ne5 {[%clk 0:02:56.4]} 9...
Bxe4 {[%clk 0:02:40]} 10. Bxe4 {[%clk 0:02:54.2]} 10... Nxe4 {[%clk 0:02:39.1]}
11. Qxe4 {[%clk 0:02:52.6]} 11... c6 {[%clk 0:02:30.8]} 12. Qg4 {[%clk
0:02:41.9]} 12... Bf6 {[%clk 0:02:08.2]} 13. Re1 {[%clk 0:02:29]} 13... O-O
{[%clk 0:01:57.9]} 14. Bf4 {[%clk 0:02:20.3]} 14... Qe7 {[%clk 0:00:53.7]} 15.
Rad1 {[%clk 0:02:15.7]} 15... Nb6 {[%clk 0:00:50.4]} 16. Rd3 {[%clk 0:01:56.7]}
16... Rad8 {[%clk 0:00:45.6]} 17. Qh5 {[%clk 0:01:45.9]} 17... g6 {[%clk
0:00:44]} 18. Qh3 {[%clk 0:01:36.8]} 18... Nd5 {[%clk 0:00:35.9]} 19. Bh6 {[%clk
0:01:33.6]} 19... Rfe8 {[%clk 0:00:33.9]} 20. Ng4 {[%clk 0:01:28.2]} 20... Bh8
{[%clk 0:00:31.9]} 21. Rf3 {[%clk 0:01:09.2]} 21... Bxd4 {[%clk 0:00:26.4]} 22.
c4 {[%clk 0:00:54.1]} 22... Nb6 {[%clk 0:00:24]} 23. Bg5 {[%clk 0:00:39.6]}
23... Qc5 {[%clk 0:00:20.1]} 24. Nh6+ {[%clk 0:00:35.8]} 1-0

[Event "*** Titled Tuesday Blitz"]
[Site "Chess.com"]
[Date "2021.03.09"]
[Round "6"]
[White "PavelChernomordik"]
[Black "hellokostya"]
[Result "1-0"]
[WhiteElo "2397"]
[BlackElo "2516"]
[TimeControl "180+1"]
[EndTime "11:09:45 PST"]
[Termination "PavelChernomordik won on time"]

1. e4 {[%clk 0:03:00.9]} 1... e5 {[%clk 0:02:55.8]} 2. Nf3 {[%clk 0:03:00.3]}
2... Nc6 {[%clk 0:02:55.8]} 3. Bb5 {[%clk 0:03:00.2]} 3... a6 {[%clk 0:02:54.9]}
4. Ba4 {[%clk 0:02:59.6]} 4... Nf6 {[%clk 0:02:54.8]} 5. Qe2 {[%clk 0:02:59.5]}
5... b5 {[%clk 0:02:53.6]} 6. Bb3 {[%clk 0:02:59]} 6... Bc5 {[%clk 0:02:52.5]}
7. a4 {[%clk 0:02:58.6]} 7... b4 {[%clk 0:02:46.6]} 8. Bxf7+ {[%clk 0:02:54.8]}
8... Kxf7 {[%clk 0:02:46.5]} 9. Qc4+ {[%clk 0:02:54]} 9... d5 {[%clk 0:02:42.6]}
10. Qxc5 {[%clk 0:02:52.7]} 10... Qd6 {[%clk 0:02:32]} 11. Qxd6 {[%clk
0:02:52.2]} 11... cxd6 {[%clk 0:02:32.9]} 12. exd5 {[%clk 0:02:52.2]} 12... Nxd5
{[%clk 0:02:33.1]} 13. h3 {[%clk 0:02:51.9]} 13... Rf8 {[%clk 0:02:19.4]} 14. d3
{[%clk 0:02:50.9]} 14... Kg8 {[%clk 0:02:10.4]} 15. Nbd2 {[%clk 0:02:49.4]}
15... Nf4 {[%clk 0:01:49.3]} 16. O-O {[%clk 0:02:42.1]} 16... Ne2+ {[%clk
0:01:49.3]} 17. Kh2 {[%clk 0:02:41]} 17... Ned4 {[%clk 0:01:50.2]} 18. c3 {[%clk
0:02:29.4]} 18... bxc3 {[%clk 0:01:48.2]} 19. bxc3 {[%clk 0:02:28]} 19... Nxf3+
{[%clk 0:01:48.4]} 20. Nxf3 {[%clk 0:02:26.4]} 20... Bf5 {[%clk 0:01:49]} 21.
Rd1 {[%clk 0:02:19.9]} 21... Rac8 {[%clk 0:01:47]} 22. Ba3 {[%clk 0:02:16.7]}
22... Rfd8 {[%clk 0:01:25.2]} 23. Rab1 {[%clk 0:02:01.6]} 23... d5 {[%clk
0:00:58.1]} 24. Rb6 {[%clk 0:01:53.8]} 24... a5 {[%clk 0:00:54.2]} 25. g4 {[%clk
0:01:46.3]} 25... Bxd3 {[%clk 0:00:51]} 26. Rxd3 {[%clk 0:01:44.8]} 26... e4
{[%clk 0:00:51.2]} 27. Re3 {[%clk 0:01:39.7]} 27... exf3 {[%clk 0:00:51]} 28.
Kg3 {[%clk 0:01:32.2]} 28... d4 {[%clk 0:00:46.6]} 29. cxd4 {[%clk 0:01:29.3]}
29... Nxd4 {[%clk 0:00:47.5]} 30. Bb2 {[%clk 0:01:20.6]} 30... Rc4 {[%clk
0:00:29.7]} 31. Rb7 {[%clk 0:01:13.5]} 31... Rf8 {[%clk 0:00:09.7]} 32. Ree7
{[%clk 0:01:07.4]} 1-0

[Event "*** Titled Tuesday Blitz"]
[Site "Chess.com"]
[Date "2021.03.09"]
[Round "6"]
[White "jraosam"]
[Black "Fore_Man"]
[Result "1-0"]
[WhiteElo "1920"]
[BlackElo "2227"]
[TimeControl "180+1"]
[EndTime "11:09:47 PST"]
[Termination "jraosam won by resignation"]

1. d4 {[%clk 0:03:00.4]} 1... e6 {[%clk 0:02:56.8]} 2. Bf4 {[%clk 0:02:53.5]}
2... c5 {[%clk 0:02:55.4]} 3. e3 {[%clk 0:02:48.7]} 3... Qb6 {[%clk 0:02:53.4]}
4. Nc3 {[%clk 0:02:42.8]} 4... Nf6 {[%clk 0:02:46.7]} 5. Nf3 {[%clk 0:02:37.7]}
5... Nc6 {[%clk 0:02:46.3]} 6. Be2 {[%clk 0:02:26.4]} 6... cxd4 {[%clk
0:02:38.6]} 7. exd4 {[%clk 0:02:18.6]} 7... Qxb2 {[%clk 0:02:35.5]} 8. Nb5
{[%clk 0:02:12.7]} 8... Bb4+ {[%clk 0:02:33]} 9. Bd2 {[%clk 0:02:06.4]} 9... O-O
{[%clk 0:02:06.5]} 10. Rb1 {[%clk 0:02:00.1]} 10... Bxd2+ {[%clk 0:02:05.1]} 11.
Nxd2 {[%clk 0:01:58.1]} 11... Qxa2 {[%clk 0:02:00.7]} 12. Nc4 {[%clk 0:01:52.9]}
12... a6 {[%clk 0:01:45.7]} 13. Nc3 {[%clk 0:01:47.1]} 13... Qxb1 {[%clk
0:01:34.4]} 14. Qxb1 {[%clk 0:01:46.1]} 14... Nxd4 {[%clk 0:01:33.2]} 15. Nb6
{[%clk 0:01:33]} 15... Rb8 {[%clk 0:01:30.8]} 16. O-O {[%clk 0:01:27]} 16...
Nxe2+ {[%clk 0:01:25.5]} 17. Nxe2 {[%clk 0:01:23.4]} 17... d5 {[%clk 0:01:16.4]}
18. Re1 {[%clk 0:01:18.8]} 18... h6 {[%clk 0:01:02.6]} 19. h3 {[%clk 0:01:12.2]}
19... e5 {[%clk 0:01:01.2]} 20. Nc3 {[%clk 0:01:07.1]} 20... d4 {[%clk
0:00:59.8]} 21. Ncd5 {[%clk 0:01:02.1]} 21... Nxd5 {[%clk 0:00:55.7]} 22. Nxd5
{[%clk 0:01:03]} 22... Re8 {[%clk 0:00:52.5]} 23. Qb6 {[%clk 0:00:55.1]} 23...
Bd7 {[%clk 0:00:43.8]} 24. Qc7 {[%clk 0:00:50.3]} 24... Bc6 {[%clk 0:00:40.3]}
25. Ne7+ {[%clk 0:00:40.7]} 25... Kf8 {[%clk 0:00:37.6]} 26. Nxc6 {[%clk
0:00:40.3]} 26... bxc6 {[%clk 0:00:37]} 27. Rxe5 {[%clk 0:00:39.6]} 27... Rxe5
{[%clk 0:00:29.6]} 28. Qxb8+ {[%clk 0:00:37.8]} 28... Ke7 {[%clk 0:00:28.6]} 29.
Qxe5+ {[%clk 0:00:35.7]} 1-0

[Event "*** Titled Tuesday Blitz"]
[Site "Chess.com"]
[Date "2021.03.09"]
[Round "6"]
[White "DonBroca"]
[Black "dhaessel"]
[Result "1-0"]
[WhiteElo "2151"]
[BlackElo "1965"]
[TimeControl "180+1"]
[EndTime "11:09:47 PST"]
[Termination "DonBroca won by checkmate"]

1. e4 {[%clk 0:03:00.9]} 1... e5 {[%clk 0:02:59.5]} 2. Nf3 {[%clk 0:03:00.7]}
2... Nc6 {[%clk 0:02:59.5]} 3. Bb5 {[%clk 0:03:00.5]} 3... Nf6 {[%clk
0:02:58.6]} 4. O-O {[%clk 0:02:59.8]} 4... Nxe4 {[%clk 0:02:58]} 5. Re1 {[%clk
0:02:59.6]} 5... Nd6 {[%clk 0:02:57.7]} 6. Nxe5 {[%clk 0:02:44.6]} 6... Be7
{[%clk 0:02:42.6]} 7. Bf1 {[%clk 0:02:38.8]} 7... Nxe5 {[%clk 0:02:41.7]} 8.
Rxe5 {[%clk 0:02:38.8]} 8... O-O {[%clk 0:02:42.3]} 9. d4 {[%clk 0:02:38.4]}
9... Ne8 {[%clk 0:02:39.6]} 10. c4 {[%clk 0:02:34.3]} 10... Bf6 {[%clk
0:02:29.2]} 11. Re1 {[%clk 0:02:33]} 11... d5 {[%clk 0:02:24.1]} 12. Nc3 {[%clk
0:02:31.7]} 12... c6 {[%clk 0:02:14.2]} 13. c5 {[%clk 0:02:14]} 13... Nc7 {[%clk
0:02:11.6]} 14. g3 {[%clk 0:02:11.6]} 14... Ne6 {[%clk 0:02:10]} 15. Be3 {[%clk
0:02:09.4]} 15... Nxc5 {[%clk 0:01:33.6]} 16. dxc5 {[%clk 0:02:00.6]} 16... d4
{[%clk 0:01:34.5]} 17. Bxd4 {[%clk 0:01:36.8]} 17... Bxd4 {[%clk 0:01:22.4]} 18.
Qh5 {[%clk 0:01:31.9]} 18... g6 {[%clk 0:01:15.2]} 19. Qf3 {[%clk 0:01:16.3]}
19... Bxc5 {[%clk 0:01:11.4]} 20. Ne4 {[%clk 0:01:15.3]} 20... Bd4 {[%clk
0:00:31.1]} 21. Rad1 {[%clk 0:01:13.1]} 21... Be6 {[%clk 0:00:28.1]} 22. Qf4
{[%clk 0:00:55.4]} 22... Qb6 {[%clk 0:00:19.4]} 23. Rxd4 {[%clk 0:00:54.3]}
23... Bd5 {[%clk 0:00:09.2]} 24. Nf6+ {[%clk 0:00:51.6]} 24... Kg7 {[%clk
0:00:08.9]} 25. Qe5 {[%clk 0:00:48.5]} 25... Kh6 {[%clk 0:00:04.3]} 26. Rh4+
{[%clk 0:00:44]} 26... Kg7 {[%clk 0:00:03.3]} 27. Ne8+ {[%clk 0:00:44.2]} 27...
Kg8 {[%clk 0:00:02.4]} 28. Qg7# {[%clk 0:00:45.1]} 1-0

[Event "*** Titled Tuesday Blitz"]
[Site "Chess.com"]
[Date "2021.03.09"]
[Round "6"]
[White "Lagmantr"]
[Black "eguindy"]
[Result "1-0"]
[WhiteElo "2719"]
[BlackElo "2458"]
[TimeControl "180+1"]
[EndTime "11:09:50 PST"]
[Termination "Lagmantr won by resignation"]

1. e4 {[%clk 0:02:56.2]} 1... e6 {[%clk 0:02:57.6]} 2. d4 {[%clk 0:02:55.6]}
2... d5 {[%clk 0:02:58]} 3. exd5 {[%clk 0:02:56.5]} 3... Qxd5 {[%clk 0:02:55.7]}
4. Nf3 {[%clk 0:02:57.4]} 4... Nf6 {[%clk 0:02:54.7]} 5. Nc3 {[%clk 0:02:57.2]}
5... Bb4 {[%clk 0:02:52.5]} 6. Bd2 {[%clk 0:02:57.6]} 6... Bxc3 {[%clk 0:02:52]}
7. Bxc3 {[%clk 0:02:58.5]} 7... b6 {[%clk 0:02:51.4]} 8. g3 {[%clk 0:02:43.4]}
8... Bb7 {[%clk 0:02:34.3]} 9. Bg2 {[%clk 0:02:43.8]} 9... Qe4+ {[%clk
0:02:32.5]} 10. Qe2 {[%clk 0:02:44]} 10... Nbd7 {[%clk 0:02:29.5]} 11. Nh4
{[%clk 0:02:32]} 11... Qxe2+ {[%clk 0:02:26.8]} 12. Kxe2 {[%clk 0:02:32.9]}
12... Bxg2 {[%clk 0:02:25.3]} 13. Nxg2 {[%clk 0:02:33.8]} 13... O-O-O {[%clk
0:02:23.8]} 14. f3 {[%clk 0:02:29.5]} 14... Nd5 {[%clk 0:02:18.6]} 15. Bd2
{[%clk 0:02:29.6]} 15... e5 {[%clk 0:02:11.4]} 16. c4 {[%clk 0:02:18.6]} 16...
N5f6 {[%clk 0:02:11.2]} 17. d5 {[%clk 0:02:18.7]} 17... h6 {[%clk 0:02:05.3]}
18. Ne3 {[%clk 0:02:18.6]} 18... g6 {[%clk 0:02:03.7]} 19. a4 {[%clk 0:02:18.7]}
19... a5 {[%clk 0:01:58.6]} 20. b4 {[%clk 0:02:18.3]} 20... axb4 {[%clk
0:01:56.9]} 21. Bxb4 {[%clk 0:02:19.2]} 21... Kb7 {[%clk 0:01:55.9]} 22. a5
{[%clk 0:02:03.7]} 22... Ra8 {[%clk 0:01:54.5]} 23. Rhb1 {[%clk 0:02:04.1]}
23... c6 {[%clk 0:01:38.5]} 24. axb6 {[%clk 0:01:54.2]} 24... Rxa1 {[%clk
0:01:34.4]} 25. Rxa1 {[%clk 0:01:54.4]} 25... c5 {[%clk 0:01:33.1]} 26. Bc3
{[%clk 0:01:44.2]} 26... Kxb6 {[%clk 0:01:32.8]} 27. Nc2 {[%clk 0:01:32.5]}
27... Re8 {[%clk 0:01:30]} 28. Rb1+ {[%clk 0:01:28.8]} 28... Kc7 {[%clk
0:01:25.9]} 29. Na3 {[%clk 0:01:28.7]} 29... Ra8 {[%clk 0:01:20.5]} 30. Nb5+
{[%clk 0:01:28.7]} 30... Kd8 {[%clk 0:01:20]} 31. Ra1 {[%clk 0:01:22.3]} 31...
Rxa1 {[%clk 0:01:18.6]} 32. Bxa1 {[%clk 0:01:23.2]} 32... Ne8 {[%clk 0:01:15.6]}
33. Kd3 {[%clk 0:01:12.9]} 33... Ke7 {[%clk 0:01:14.9]} 34. Bb2 {[%clk
0:01:09.7]} 34... f5 {[%clk 0:01:14.2]} 35. Na7 {[%clk 0:01:07.6]} 35... Nd6
{[%clk 0:01:11.9]} 36. Nc6+ {[%clk 0:01:07.4]} 36... Kf7 {[%clk 0:01:08.2]} 37.
Nxe5+ {[%clk 0:01:05.1]} 37... Nxe5+ {[%clk 0:01:06.4]} 38. Bxe5 {[%clk
0:01:06]} 38... Nc8 {[%clk 0:01:06]} 39. Kc3 {[%clk 0:01:04]} 39... Ke7 {[%clk
0:01:04]} 40. Kb3 {[%clk 0:01:03.2]} 40... Nb6 {[%clk 0:01:03.4]} 41. Bf4 {[%clk
0:01:03]} 41... h5 {[%clk 0:01:00.5]} 42. Be3 {[%clk 0:01:02]} 42... Kd6 {[%clk
0:00:58.9]} 43. Bh6 {[%clk 0:01:00.6]} 43... Nd7 {[%clk 0:00:57.7]} 44. Ka4
{[%clk 0:00:56.8]} 1-0

[Event "*** Titled Tuesday Blitz"]
[Site "Chess.com"]
[Date "2021.03.09"]
[Round "6"]
[White "dretch"]
[Black "Harry_Rakkel"]
[Result "1-0"]
[WhiteElo "2850"]
[BlackElo "2642"]
[TimeControl "180+1"]
[EndTime "11:09:54 PST"]
[Termination "dretch won by resignation"]

1. d4 {[%clk 0:03:00.9]} 1... Nf6 {[%clk 0:02:59.1]} 2. c4 {[%clk 0:03:01.2]}
2... e6 {[%clk 0:02:58.6]} 3. Nc3 {[%clk 0:03:01.7]} 3... Bb4 {[%clk 0:02:58]}
4. Qc2 {[%clk 0:03:02.2]} 4... O-O {[%clk 0:02:54.6]} 5. e4 {[%clk 0:03:02.4]}
5... d6 {[%clk 0:02:47.4]} 6. a3 {[%clk 0:03:01.3]} 6... Bxc3+ {[%clk
0:02:46.3]} 7. bxc3 {[%clk 0:03:02.2]} 7... e5 {[%clk 0:02:45.3]} 8. Bd3 {[%clk
0:03:01.7]} 8... c5 {[%clk 0:02:44.4]} 9. Ne2 {[%clk 0:03:01.9]} 9... cxd4
{[%clk 0:02:42.4]} 10. cxd4 {[%clk 0:03:01.1]} 10... Nc6 {[%clk 0:02:41.8]} 11.
d5 {[%clk 0:02:59.5]} 11... Na5 {[%clk 0:02:37.3]} 12. Bd2 {[%clk 0:02:38.4]}
12... Nd7 {[%clk 0:02:31.2]} 13. Bb4 {[%clk 0:02:38.3]} 13... Qc7 {[%clk
0:02:26.7]} 14. Nc3 {[%clk 0:02:38.4]} 14... a6 {[%clk 0:02:24]} 15. Na4 {[%clk
0:02:35.4]} 15... b6 {[%clk 0:02:19.9]} 16. Bxa5 {[%clk 0:02:35.1]} 16... bxa5
{[%clk 0:02:19.3]} 17. c5 {[%clk 0:02:35.7]} 17... Nxc5 {[%clk 0:02:10.4]} 18.
Nxc5 {[%clk 0:02:34.9]} 18... dxc5 {[%clk 0:02:08.4]} 19. Rc1 {[%clk 0:02:31.1]}
19... Rb8 {[%clk 0:02:07.9]} 20. Qxc5 {[%clk 0:02:15.7]} 20... Qxc5 {[%clk
0:01:59.2]} 21. Rxc5 {[%clk 0:02:16.6]} 21... Rb3 {[%clk 0:01:58.6]} 22. Kd2
{[%clk 0:02:15.9]} 22... Rxa3 {[%clk 0:01:56]} 23. Rhc1 {[%clk 0:02:15.1]} 23...
Bd7 {[%clk 0:01:52.9]} 24. Bxa6 {[%clk 0:01:57.6]} 24... Ra4 {[%clk 0:01:02.7]}
25. Bc4 {[%clk 0:01:46.1]} 25... Rb8 {[%clk 0:00:58.7]} 26. Rc7 {[%clk
0:01:40.9]} 26... Rd8 {[%clk 0:00:53.5]} 27. Ke3 {[%clk 0:01:12.2]} 27... Kf8
{[%clk 0:00:50.2]} 28. Rc3 {[%clk 0:01:06.9]} 28... Ra1 {[%clk 0:00:36.5]} 29.
d6 {[%clk 0:01:00.3]} 29... a4 {[%clk 0:00:33.4]} 30. Bd5 {[%clk 0:00:57.8]}
30... g6 {[%clk 0:00:28]} 31. Ra7 {[%clk 0:00:54.4]} 31... Be8 {[%clk
0:00:20.1]} 32. Rcc7 {[%clk 0:00:51]} 32... Rxd6 {[%clk 0:00:20.1]} 33. Rc8
{[%clk 0:00:49.8]} 33... Ra3+ {[%clk 0:00:17.7]} 34. Ke2 {[%clk 0:00:48.2]}
34... Rb6 {[%clk 0:00:17.5]} 35. Rxf7+ {[%clk 0:00:47]} 1-0

[Event "*** Titled Tuesday Blitz"]
[Site "Chess.com"]
[Date "2021.03.09"]
[Round "6"]
[White "pastouche06"]
[Black "Handszar"]
[Result "1-0"]
[WhiteElo "2556"]
[BlackElo "2376"]
[TimeControl "180+1"]
[EndTime "11:09:59 PST"]
[Termination "pastouche06 won on time"]

1. d4 {[%clk 0:03:00.9]} 1... c5 {[%clk 0:02:44.3]} 2. d5 {[%clk 0:03:00.7]}
2... Nf6 {[%clk 0:02:43]} 3. Nc3 {[%clk 0:03:00]} 3... Qa5 {[%clk 0:02:39]} 4.
Bd2 {[%clk 0:02:56.5]} 4... d6 {[%clk 0:02:37.8]} 5. e4 {[%clk 0:02:55.8]} 5...
g6 {[%clk 0:02:37.3]} 6. Bb5+ {[%clk 0:02:41.6]} 6... Nbd7 {[%clk 0:02:18.5]} 7.
a4 {[%clk 0:02:41.2]} 7... Bg7 {[%clk 0:02:13.4]} 8. Nf3 {[%clk 0:02:39.6]} 8...
O-O {[%clk 0:02:06.4]} 9. O-O {[%clk 0:02:36.2]} 9... a6 {[%clk 0:01:59.9]} 10.
Be2 {[%clk 0:02:27.5]} 10... Qc7 {[%clk 0:01:55.6]} 11. h3 {[%clk 0:02:16]}
11... Rb8 {[%clk 0:01:36.6]} 12. b3 {[%clk 0:01:54.2]} 12... Qd8 {[%clk
0:01:06.6]} 13. a5 {[%clk 0:01:38.7]} 13... b5 {[%clk 0:00:45.1]} 14. axb6
{[%clk 0:01:37.8]} 14... Rxb6 {[%clk 0:00:41.5]} 15. Re1 {[%clk 0:01:32.5]}
15... Ne8 {[%clk 0:00:28.7]} 16. Ra2 {[%clk 0:01:28.2]} 16... Nc7 {[%clk
0:00:28.2]} 17. Na4 {[%clk 0:01:23.5]} 17... Rb7 {[%clk 0:00:22.5]} 18. Bc3
{[%clk 0:01:17.8]} 18... Bh6 {[%clk 0:00:13.4]} 19. Ba5 {[%clk 0:01:11.9]} 19...
Qe8 {[%clk 0:00:12.9]} 20. Bc4 {[%clk 0:01:05.6]} 20... Nb5 {[%clk 0:00:10.8]}
21. e5 {[%clk 0:00:55.5]} 21... dxe5 {[%clk 0:00:10.4]} 22. Nxe5 {[%clk
0:00:56.4]} 22... Nxe5 {[%clk 0:00:09.8]} 23. Rxe5 {[%clk 0:00:57.3]} 23... Bg7
{[%clk 0:00:07.7]} 24. Re1 {[%clk 0:00:57.2]} 24... Nd6 {[%clk 0:00:01.9]} 25.
Bf1 {[%clk 0:00:53.6]} 25... Rb8 {[%clk 0:00:01.3]} 26. Nxc5 {[%clk 0:00:50.1]}
26... Bf5 {[%clk 0:00:01.1]} 27. Nxa6 {[%clk 0:00:42.9]} 1-0

[Event "*** Titled Tuesday Blitz"]
[Site "Chess.com"]
[Date "2021.03.09"]
[Round "6"]
[White "Artyom_ChessMate"]
[Black "shaheus"]
[Result "1/2-1/2"]
[WhiteElo "2542"]
[BlackElo "2408"]
[TimeControl "180+1"]
[EndTime "11:10:00 PST"]
[Termination "Game drawn by repetition"]

1. e4 {[%clk 0:03:00.9]} 1... c5 {[%clk 0:02:58.9]} 2. Nc3 {[%clk 0:03:00.9]}
2... Nc6 {[%clk 0:02:58.3]} 3. Bb5 {[%clk 0:03:00.8]} 3... g6 {[%clk 0:02:55.1]}
4. Bxc6 {[%clk 0:03:00.7]} 4... dxc6 {[%clk 0:02:54.8]} 5. d3 {[%clk 0:03:01.6]}
5... Bg7 {[%clk 0:02:55.1]} 6. f4 {[%clk 0:03:02.5]} 6... b6 {[%clk 0:02:55.2]}
7. Nf3 {[%clk 0:03:03.4]} 7... Nf6 {[%clk 0:02:54.4]} 8. O-O {[%clk 0:03:04.3]}
8... O-O {[%clk 0:02:54]} 9. Qe1 {[%clk 0:03:05.2]} 9... Ba6 {[%clk 0:02:36.7]}
10. Ne5 {[%clk 0:02:56.1]} 10... Qc7 {[%clk 0:02:19.4]} 11. Be3 {[%clk
0:02:49.5]} 11... Nd7 {[%clk 0:02:15.8]} 12. Nxd7 {[%clk 0:02:48.7]} 12... Qxd7
{[%clk 0:02:15.7]} 13. e5 {[%clk 0:02:47.4]} 13... f6 {[%clk 0:01:54.6]} 14. Qg3
{[%clk 0:02:38.7]} 14... fxe5 {[%clk 0:01:50.5]} 15. fxe5 {[%clk 0:02:39.6]}
15... Rxf1+ {[%clk 0:01:48.4]} 16. Rxf1 {[%clk 0:02:38.9]} 16... Rf8 {[%clk
0:01:47.9]} 17. Rxf8+ {[%clk 0:02:38.2]} 17... Kxf8 {[%clk 0:01:43.8]} 18. Ne4
{[%clk 0:02:35]} 18... Qf5 {[%clk 0:01:23.6]} 19. e6 {[%clk 0:02:26.3]} 19...
Be5 {[%clk 0:01:08.2]} 20. Qh4 {[%clk 0:02:24.6]} 20... h5 {[%clk 0:00:56.5]}
21. c4 {[%clk 0:02:10.5]} 21... Bc8 {[%clk 0:00:50.6]} 22. Ng5 {[%clk
0:01:49.8]} 22... Bxe6 {[%clk 0:00:41.7]} 23. Nxe6+ {[%clk 0:01:41.2]} 23...
Qxe6 {[%clk 0:00:41.3]} 24. Qe4 {[%clk 0:01:42.1]} 24... Qf6 {[%clk 0:00:33.7]}
25. Bh6+ {[%clk 0:01:01]} 25... Kf7 {[%clk 0:00:31.6]} 26. g3 {[%clk 0:01:01.1]}
26... Bxb2 {[%clk 0:00:26]} 27. Kg2 {[%clk 0:00:55.4]} 27... Bd4 {[%clk
0:00:25.5]} 28. Bf4 {[%clk 0:00:55.3]} 28... e5 {[%clk 0:00:23.9]} 29. Be3
{[%clk 0:00:53.8]} 29... Bxe3 {[%clk 0:00:21.1]} 30. Qxe3 {[%clk 0:00:54.7]}
30... Qf5 {[%clk 0:00:20.7]} 31. Qh6 {[%clk 0:00:50.3]} 31... Qxd3 {[%clk
0:00:19.2]} 32. Qh7+ {[%clk 0:00:50.5]} 32... Kf6 {[%clk 0:00:18.1]} 33. Qh8+
{[%clk 0:00:50.8]} 33... Kf7 {[%clk 0:00:17.6]} 34. Qh7+ {[%clk 0:00:50.7]}
34... Kf6 {[%clk 0:00:17.4]} 35. Qh8+ {[%clk 0:00:51.1]} 35... Kf7 {[%clk
0:00:16.7]} 36. Qh7+ {[%clk 0:00:48.3]} 1/2-1/2